{"text_format":"1","workbook":"xlsx","n_sheets":12,"sheets":["1. Forside","2. Samlet prisloft","3. Driftsomkostninger","4. Historiske investeringer","5. Gennemførte investeringer","6. Korrektion investeringer","7. Planlagte investeringer","8. 1-1 omkostninger","9. Miljø- og servicemål","10. Nettofinansielle poster","11. Over- eller underdækning","12. Kontrol med indtægtsrammen"],"not_rendered":{"charts":0,"images":0,"macros":1,"external_links":0,"defined_names":0,"comments":0,"pivot_tables":0},"unopened":[],"bounds":{"document_bytes":16777216,"sheet_cells":100000,"rows_first":2000,"rows_last":500,"rows_between":2000,"halvings":0,"cell_chars":16384,"cell_head_chars":4096},"cells_cut":0,"cells_raw":0,"read":"whole","date_system":"1900"}

{"sheet":"1. Forside","index":0,"n_rows":26,"n_cols":4,"rows_kept":26,"cut":false,"hidden":false,"merged":[[25,3,25,5],[24,3,24,5],[23,3,23,5],[22,3,22,5],[21,3,21,5],[20,3,20,5],[19,3,19,5],[18,3,18,5],[7,3,7,5],[12,3,12,5],[15,3,15,5],[16,3,16,5],[17,3,17,5]]}
["Solrød Vandværk a.m.b.a."]
[]
[]
[]
[]
[]
[]
[null,null,null,"Bilag A"]
[]
[]
[]
[]
[null,null,null,"Indholdsfortegnelse"]
[]
[]
[null,null,"Fane nr. 2","Samlet prisloft "]
[null,null,"Fane nr. 3","Driftsomkostninger"]
[null,null,"Fane nr. 4","Historiske investeringer "]
[null,null,"Fane nr. 5","Gennemførte investeringer"]
[null,null,"Fane nr. 6","Korrektion investeringer"]
[null,null,"Fane nr. 7","Planlagte investeringer"]
[null,null,"Fane nr. 8","1:1 omkostninger"]
[null,null,"Fane nr. 9","Miljø- og servicemål"]
[null,null,"Fane nr. 10","Nettofinansielle poster"]
[null,null,"Fane nr. 11","Over- eller underdækning"]
[null,null,"Fane nr. 12","Kontrol med indtægtsrammen og oversigt over ekstraordinære effektiviseringsgevinster"]

{"sheet":"2. Samlet prisloft","index":1,"n_rows":38,"n_cols":6,"rows_kept":38,"cut":false,"hidden":false,"merged":[[3,1,3,5]]}
[{"$f":"'1. Forside'!A1","v":"Solrød Vandværk a.m.b.a."}]
[]
[]
[null,"Fane 2. Samlet prisloft for 2015"]
[]
[null,"Driftsomkostninger"]
[null,"Driftsomkostninger i prisloftet for 2014",{"$f":"'3. Driftsomkostninger'!C21","v":5748433.2149999999},"kr."]
[null,"Bortfald af væsentlige omkostninger",{"$f":"-'3. Driftsomkostninger'!C17","v":0},"kr."]
[null,"Korrektion for prisudviklingen 2014-2015",{"$f":"'3. Driftsomkostninger'!C23","v":4598.746572},"kr."]
[null,"Forhøjelse til effektivt niveau iht. benchmarkingen",{"$f":"'3. Driftsomkostninger'!C29","v":0},"kr."]
[null,"Korrektion for generelt effektiviseringskrav",{"$f":"-'3. Driftsomkostninger'!C35","v":-25293.106146000002},"kr."]
[null,"Korrektion for individuelt effektiviseringskrav",{"$f":"-'3. Driftsomkostninger'!C44","v":0},"kr."]
[null,"Driftsomkostninger i alt",{"$f":"SUM(C7:C12)","v":5727738.8554259995},"kr.",{"$f":"C13","v":5727738.8554259995}," kr."]
[null,"Investeringer"]
[null,"Tillæg for historiske investeringer",{"$f":"'4. Historiske investeringer'!C9","v":2147177.757833445},"kr."]
[null,"Tillæg for gennemførte investeringer i 2011-2013",{"$f":"'5. Gennemførte investeringer'!F62","v":924206.53666666662},"kr."]
[null,"Korrektion af tillæg for planlagte investeringer vedrørende 2013  ",{"$f":"'6. Korrektion investeringer'!C10","v":558573.1},"kr."]
[null,"Tillæg for planlagte investeringer i 2014 og 2015",{"$f":"'7. Planlagte investeringer'!F20","v":446333.33333333337},"kr."]
[null,"Investeringstillæg i alt",{"$f":"SUM(C15:C18)","v":4076290.7278334452},"kr.",{"$f":"C19","v":4076290.7278334452}," kr."]
[null,"Øvrige omkostninger mv."]
[null,"Tillæg for 1:1 omkostninger i 2015",{"$f":"'8. 1-1 omkostninger'!C9","v":133000},"kr."]
[null,"Tillæg for afgift for ledningsført vand i 2015",{"$f":"'8. 1-1 omkostninger'!C14","v":4180000},"kr."]
[null,"Tillæg vedr. revisorerklæringer og DANVA/FVD-kontingent",{"$f":"'8. 1-1 omkostninger'!C20","v":66000},"kr."]
[null,"Korrektion ift. faktiske 1:1 omkostninger i 2013",{"$f":"'8. 1-1 omkostninger'!C26","v":-337355},"kr."]
[null,"Tillæg for driftsomkostninger til miljø- og servicemål i 2015",{"$f":"'9. Miljø- og servicemål'!C8","v":10000},"kr."]
[null,"Korrektion ift. faktiske driftsomkostninger til miljø- og servicemål i 2013",{"$f":"'9. Miljø- og servicemål'!C15","v":0},"kr."]
[null,"Tillæg/fradrag for nettofinansielle poster i 2015",{"$f":"'10. Nettofinansielle poster'!C9","v":35000},"kr."]
[null,"Korrektion ift. faktiske nettofinansielle poster i 2013",{"$f":"'10. Nettofinansielle poster'!C16","v":516198},"kr."]
[null,"Øvrige omkostninger mv. i alt",{"$f":"SUM(C21:C28)","v":4602843},"kr.",{"$f":"C29","v":4602843}," kr."]
[null,"Historisk over- eller underdækning"]
[null,"Tillæg/fradrag for over- eller underdækning til og med 2010",{"$f":"'11. Over- eller underdækning'!C11","v":-1352958.8888888888},"kr.",{"$f":"C31","v":-1352958.8888888888}," kr."]
[null,"Korrektion i forhold til tidligere indtægtsramme "]
[null,"Korrektion for overholdelse af indtægtsramme i prisloft 2013",{"$f":"'12. Kontrol med indtægtsrammen'!E27","v":-180289.51288720965},"kr.",{"$f":"C33","v":-180289.51288720965}," kr."]
[null,"Samlet prisloft"]
[null,"Indtægtsramme i 2015 ",null,null,{"$f":"SUM(E13:E33)","v":12873624.181483347}," kr."]
[null,"Debiteret vandmængde i 2013",null,null,647691," m3"]
[null,"Prisloft 2015",null,null,{"$f":"E35/E36","v":19.876181977954531}," kr./m3"]
[null,"Prisloft 2015 ekskl. afgift for ledningsført vand ",null,null,{"$f":"(E35-C22)/E36","v":13.422487237715742}," kr./m3"]

{"sheet":"3. Driftsomkostninger","index":2,"n_rows":44,"n_cols":4,"rows_kept":44,"cut":false,"hidden":false,"merged":[[3,1,3,3]]}
[{"$f":"'1. Forside'!A1","v":"Solrød Vandværk a.m.b.a."}]
[]
[]
[null,"Fane 3. Driftsomkostninger "]
[]
[null,"Driftsomkostningerne i prisloftet for 2014"]
[null,"Korrigerede driftsomkostninger i prisloftet for 2013 (DOiPL 2013)",6108738,"kr."]
[null,"Prisfremskrivning 1,5 pct.",{"$f":"0.015*SUM(C7:C7)","v":91631.069999999992},"kr."]
[null,"Generelt effektiviseringskrav (0 pct.)",0,"kr."]
[null,"Individuelt effektiviseringskrav ",0,"kr."]
[null,"Bortfald af midlertidigt tillæg  iht. § 8, stk. 5 (inkl. prisfremskrivning)",{"$f":"-1.015*445257","v":-451935.85499999998},"kr."]
[null,"Driftsomkostningerne i prisloftet for 2014 (DOiPL 2014)\n(korrigeret for bortfald af midlertidigt tillæg)",{"$f":"SUM(C7:C11)","v":5748433.2149999999},"kr."]
[]
[]
[null,"Korrektion for forventet bortfald af væsentlige omkostninger"]
[null,"Selskabets indberettede bortfald af væsentlige omkostninger inden 2015",0,"kr."]
[null,"Korrektion for forventet bortfald ",{"$f":"SUM(C16:C16)","v":0},"kr."]
[]
[]
[null,"Korrektion for prisudviklingen fra 2014-2015"]
[null,"Driftsomkostningerne i prisloftet for 2014",{"$f":"C12-C17","v":5748433.2149999999},"kr."]
[null,"Prisudvikling 2014 - 2015 ",0.08,"pct."]
[null,"Korrektion for prisudvikling",{"$f":"C21*(C22/100)","v":4598.746572},"kr."]
[]
[]
[null,"Eventuel forhøjelse til effektivt niveau iht. benchmarkingen"]
[null,"Selskabets effektive driftsomkostninger iht. benchmarkingen",5325923.1744999997,"kr."]
[null,"Selskabets pristalskorrigerede driftsomkostninger i 2015-niveau",{"$f":"C21+C23","v":5753031.9615719998},"kr."]
[null,"Eventuel forhøjelse til effektivt niveau",{"$f":"IF(C28>C27,0,C27-C28)","v":0},"kr."]
[]
[]
[null,"Korrektion for generelt effektiviseringskrav"]
[null,"Driftsomkostningerne i prisloftet for 2014",{"$f":"C21","v":5748433.2149999999},"kr. "]
[null,"Generelt effektiviseringskrav ",0.44,"pct."]
[null,"Endeligt generelt effektiviseringskrav",{"$f":"C33*(C34/100)","v":25293.106146000002},"kr. "]
[]
[]
[null,"Korrektion for individuelt effektiviseringskrav"]
[null,"Rå effektiviseringspotentiale",422509.82549999998,"kr."]
[null,"Effektiviseringspotentiale efter eventuel korrektion for særlige forhold",422509.82549999998,"kr."]
[null,"Effektiviseringspotentiale efter forsigtighedshensyn",0,"kr."]
[null,"Effektiviseringspotentiale efter eventuel korrektion for sammensætning af signifikante costdrivere",0,"kr. "]
[null,"Umiddelbart effektiviseringskrav",{"$f":"C42/4","v":0},"kr."]
[null,"Endeligt individuelt effektiviseringskrav",{"$f":"IF(C43>0.05*C21,0.05*C21,IF(C43<0.01*C21,0,C43))","v":0},"kr. "]

{"sheet":"4. Historiske investeringer","index":3,"n_rows":9,"n_cols":4,"rows_kept":9,"cut":false,"hidden":false,"merged":[[3,1,3,2]]}
[{"$f":"'3. Driftsomkostninger'!A1","v":"Solrød Vandværk a.m.b.a."}]
[]
[]
[null,"Fane 4. Historiske investeringer "]
[]
[null,"Tillæg for historiske investeringer "]
[null,"Værdi af selskabets materielle anlægsaktiver pr. 1. januar 2010",89397923.336807311,"kr."]
[null,"Den årlige standardafskrivning på de materielle anlægsaktiver iht. POLKA",2147177.757833445,"kr."]
[null,"Tillæg i alt i 2015",{"$f":"C8","v":2147177.757833445},"kr."]

{"sheet":"5. Gennemførte investeringer","index":4,"n_rows":62,"n_cols":7,"rows_kept":62,"cut":false,"hidden":false,"merged":[[3,1,3,5],[6,5,6,6]]}
[{"$f":"'4. Historiske investeringer'!A1","v":"Solrød Vandværk a.m.b.a."}]
[]
[]
[null,"Fane 5. Gennemførte investeringer i 2010 - 2013 "]
[]
[null,"Tillæg for gennemførte investeringer i 2013"]
[null," Beskrivelse af investeringen   ","Årstal ","Std. levetid (år)   "," Anskaffelses-pris (kr.)","Afskrivning "]
[null,"Afregningsmålere, elektroniske = Ø 110mm (Qn 10)",2013,10,22463,{"$f":"E8/D8","v":2246.3000000000002},"kr."]
[null,"Laboratorium (bygning, inkl. inventar+udstyr), Mek./EL",2013,10,2476,247.6,"kr."]
[null,"SRO-brønd/kvarterbrønd/sektionsbrønd, SRO",2013,10,5485,548.5,"kr."]
[null,"SRO-brønd/kvarterbrønd/sektionsbrønd, Mek./EL",2013,15,72275,4818.333333333333,"kr."]
[null,"Beluftningsanlæg, iltningstrappe, Mek./EL",2013,25,13919,556.76,"kr."]
[null,"Beluftningsanlæg, iltningstrappe, Mek./EL",2013,25,6333,{"$f":"E13/D13","v":253.32},"kr."]
[null,"Filteranlæg, trykfiltre, enkelt filtrering",2013,25,72865,2914.6,"kr."]
[null,"Pumpestation (inkl. evt. hydrofor)/trykforøger, Konstruktioner",2013,50,39043,780.86,"kr."]
[null,"SRO-brønd/kvarterbrønd/sektionsbrønd, Konstruktioner",2013,50,18656,373.12,"kr."]
[null,"Bygning for trykforøgere",2013,75,4580,61.06666666666667,"kr."]
[null,"Etageareal vandbehandlingsbygning",2013,75,19038,253.84,"kr."]
[null,"Garage og rørlager",2013,75,20485,273.13333333333333,"kr."]
[null,"SRO anlæg",2013,10,24321,2432.1,"kr."]
[null,"Pumpe inkl. stigrør og forerørsforsejlinger mv.",2013,15,29777,1985.1333333333334,"kr."]
[null,"Elanlæg",2013,20,6247,312.35000000000002,"kr."]
[null,"Boring (inkl. etablering, forerør, filter og prøvepumpning)",2013,30,521174,17372.466666666667,"kr."]
[null,"Rentvandsbeholder insitu støbt",2013,50,4480,89.6,"kr."]
[null,"Boring (inkl. etablering, forerør, filter og prøvepumpning)",2013,30,57472,1915.7333333333333,"kr."]
[null,"SRO-brønd/kvarterbrønd/sektionsbrønd, SRO",2013,10,55265,5526.5,"kr."]
[null,"Inspektionsbrønd, Mek./EL",2013,15,30045,2003,"kr."]
[null,"SRO-brønd/kvarterbrønd/sektionsbrønd, Mek./EL",2013,15,24025,1601.6666666666667,"kr."]
[null,"Ventiler på ledningsnet = Ø50 mm",2013,75,206557,2754.0933333333332,"kr."]
[null,"Ledningsnet = Ø50 mm",2013,75,580058,7734.1066666666666,"kr."]
[null,"Eternitledninger = Ø50 mm",2013,75,317065,4227.5333333333338,"kr."]
[null,"Ventiler på ledningsnet = Ø50 mm",2013,75,449374,5991.6533333333336,"kr."]
[null,"Ledningsnet = Ø50 mm",2013,75,378409,5045.4533333333329,"kr."]
[null,"Inspektionsbrønd, Mek./EL",2013,15,11000,733.33333333333337,"kr."]
[null,"Køretøjer, entreprenørmaskiner",2013,5,54999,10999.8,"kr."]
[null,"Køretøjer, små lastvogne (< 3.500 kg.)",2013,5,49082,9816.4,"kr."]
[null,"Skyllevandsbehandling, inkl. UV-filter mv., Mek./EL",2013,25,5786,231.44,"kr."]
[null,"SRO-anlæg, vandværk",2013,10,51383,5138.3,"kr."]
[null,"SRO-brønd/kvarterbrønd/sektionsbrønd, SRO",2013,10,125120,12512,"kr."]
[null,"Afregningsmålere, elektroniske = Ø 110mm (Qn 10)",2013,10,1289116,128911.6,"kr."]
[null,"Afregningsmålere, elektroniske > Ø110 mm",2013,10,76713,7671.3,"kr."]
[null,"Instrumenter (flowmåler+tryk transducer+alarmer)",2013,10,27668,2766.8,"kr."]
[null,"SRO-brønd/kvarterbrønd/sektionsbrønd, Mek./EL",2013,15,866,57.733333333333334,"kr."]
[null,"Køretøjer, små lastvogne (< 3.500 kg.)",2013,5,152695,30539,"kr."]
[null,"SRO-anlæg, vandværk",2013,10,19116,1911.6,"kr."]
[null,"SRO-brønd/kvarterbrønd/sektionsbrønd, SRO",2013,10,37889,3788.9,"kr."]
[null,"Ø 50mm < Ledningsnet = Ø110 mm",2013,75,15571,207.61333333333334,"kr."]
[null,"Elanlæg",2013,20,113934,5696.7,"kr."]
[null,"Køretøjer, entreprenørmaskiner",2013,5,83268,16653.599999999999,"kr."]
[null,"Pumpestation (inkl. evt. hydrofor)/trykforøger, SRO",2013,10,121977,12197.7,"kr."]
[null,"Sikring (terror, hærværk), SRO",2013,10,11358,1135.8,"kr."]
[null,"Pumpestation (inkl. evt. hydrofor)/trykforøger, Mek./EL",2013,25,73916,2956.64,"kr."]
[null,"Inspektionsbrønd, Konstruktioner",2013,50,9728,194.56,"kr."]
[null,"Pumpestation (inkl. evt. hydrofor)/trykforøger, Konstruktioner",2013,50,808225,16164.5,"kr."]
[null,"Bygning for trykforøgere",2013,75,17750,236.66666666666666,"kr."]
[null,"Ledningsnet = Ø50 mm",2013,75,25646,341.94666666666666,"kr."]
[null,"Ventiler på ledningsnet = Ø50 mm",2013,75,3351,44.68,"kr."]
[null,"Ø 50mm < Ledningsnet = Ø110 mm",2013,75,3761575,50154.333333333336,"kr."]
[null,"Støbejernsledninger = Ø50 mm",2013,100,490478,4904.78,"kr."]
[null,"Tillæg for 2013 ",null,null,null,{"$f":"SUM(F8:F59)","v":398286.55},"kr."]
[null,"Tillæg for 2010 - 2012",null,null,null,525919.98666666669,"kr."]
[null,"Samlet tillæg for gennemførte investeringer",null,null,null,{"$f":"F60+F61","v":924206.53666666662},"kr."]

{"sheet":"6. Korrektion investeringer","index":5,"n_rows":10,"n_cols":4,"rows_kept":10,"cut":false,"hidden":false,"merged":[[3,1,3,3]]}
[{"$f":"'5. Gennemførte investeringer'!A1","v":"Solrød Vandværk a.m.b.a."}]
[]
[]
[null,"Fane 6. Korrektion af tillæg for planlagte investeringer"]
[]
[null,"Korrektion af tillæg for planlagte investeringer vedr. 2013"]
[null,"Tillæg for planlagte investeringer i 2013 i prisloft 2013",32000,"kr."]
[null,"Tillæg for planlagte investeringer i 2013 i prisloft 2014",206000,"kr."]
[null,"Selskabets faktiske afskrivninger på gennemførte investeringer i 2013",{"$f":"'5. Gennemførte investeringer'!F60","v":398286.55},"kr."]
[null,"Korrektion af tillæg for planlagte investeringer vedr. 2013",{"$f":"C9-C7+C9-C8","v":558573.1},"kr."]

{"sheet":"7. Planlagte investeringer","index":6,"n_rows":20,"n_cols":7,"rows_kept":20,"cut":false,"hidden":false,"merged":[[6,5,6,6],[3,1,3,6]]}
[{"$f":"'6. Korrektion investeringer'!A1","v":"Solrød Vandværk a.m.b.a."}]
[]
[]
[null,"Fane 7. Planlagte investeringer "]
[]
[null,"Tillæg for planlagte investeringer i 2014 og 2015"]
[null,"Beskrivelse af investeringen   ","Årstal ","Std. levetid (år)   ","Anskaffelses-pris (kr.)   ","Afskrivning"]
[null,"Afregningsmålere, elektroniske = Ø 110mm (Qn 10)",2014,10,900000,{"$f":"E8/D8","v":90000},"kr."]
[null,"Ventiler på ledningsnet = Ø50 mm",2014,75,850000,{"$f":"E9/D9","v":11333.333333333334},"kr."]
[null,"Ledningsnet = Ø50 mm",2014,75,500000,{"$f":"E10/D10","v":6666.666666666667},"kr."]
[null,"Boring (inkl. etablering, forerør, filter og prøvepumpning)",2014,30,450000,15000,"kr."]
[null,"Ledningsnet = Ø50 mm",2014,75,2200000,29333.333333333332,"kr."]
[null,"Beluftningsanlæg, rislebakke, Mek./EL",2014,25,3500000,140000,"kr."]
[null,"Afregningsmålere, elektroniske = Ø 110mm (Qn 10)",2015,10,900000,90000,"kr."]
[null,"Ventiler på ledningsnet = Ø50 mm",2015,75,750000,10000,"kr."]
[null,"Ledningsnet = Ø50 mm",2015,75,300000,4000,"kr."]
[null,"Køretøjer, personbil",2015,5,250000,50000,"kr."]
[null,"Tillæg for 2014",null,null,null,{"$f":"SUMIF(C8:C17,\"2014\",F8:F17)","v":292333.33333333337},"kr."]
[null,"Tillæg for 2015",null,null,null,{"$f":"SUMIF(C8:C17,\"2015\",F8:F17)","v":154000},"kr."]
[null,"Tillæg i alt",null,null,null,{"$f":"F18+F19","v":446333.33333333337},"kr."]

{"sheet":"8. 1-1 omkostninger","index":7,"n_rows":26,"n_cols":4,"rows_kept":26,"cut":false,"hidden":false,"merged":[[3,1,3,3],[16,1,16,3],[22,1,22,3]]}
[{"$f":"'7. Planlagte investeringer'!A1","v":"Solrød Vandværk a.m.b.a."}]
[]
[]
[null,"Fane 8. 1:1 omkostninger"]
[]
[null,"Tillæg for budgetterede 1:1 omkostninger i 2015"]
[null,"Betaling til Forsyningssekretariatet",33000,"kr."]
[null,"Betaling af selskabsskatter ",100000,"kr. "]
[null,"Tillæg i alt ",{"$f":"SUM(C7:C8)","v":133000},"kr."]
[]
[]
[null,"Tillæg for afgift for ledningsført vand i 2015"]
[null,"Afgift for ledningsført vand (6,53 kr./m3)",4180000,"kr."]
[null,"Tillæg i alt ",{"$f":"SUM(C13:C13)","v":4180000},"kr."]
[]
[]
[null,"Tillæg for budgetterede nødvendige udgifter til revisorerklæringer samt ordinært medlemskab af DANVA og FVD i 2015"]
[null,"Betaling for ordinært medlemskab af DANVA/FVD",30000,"kr."]
[null,"Betaling for revisorerklæringer",36000,"kr."]
[null,"Tillæg i alt ",{"$f":"SUM(C18:C19)","v":66000},"kr."]
[]
[]
[null,"Korrektion af tillæg for faktiske 1:1 omkostninger (inkl. afgift for ledningsført vand, revisorerklæringer og ordinært medlemskab af DANVA/FVD) i 2013"]
[null,"Selskabets faktiske 1:1 omkostninger mv. i 2013, jf. reguleringsregnskabet",3774145,"kr."]
[null,"Tillæg for budgetterede 1:1 omkostninger mv. i prisloft 2013",4111500,"kr."]
[null,"Korrektion af tillæg for budgetterede 1:1 omkostninger mv. i 2013",{"$f":"C24-C25","v":-337355},"kr."]

{"sheet":"9. Miljø- og servicemål","index":8,"n_rows":15,"n_cols":4,"rows_kept":15,"cut":false,"hidden":false,"merged":[[3,1,3,3]]}
[{"$f":"'8. 1-1 omkostninger'!A1","v":"Solrød Vandværk a.m.b.a."}]
[]
[]
[null,"Fane 9. Driftsomkostninger til miljø- og servicemål "]
[]
[null,"Tillæg for budgetterede driftsomkostninger til miljø- og servicemål i 2015"]
[null,"Kvalitetssikring",10000,"kr."]
[null,"Tillæg i alt",{"$f":"SUM(C7:C7)","v":10000},"kr."]
[]
[]
[]
[null,"Korrektion af tillæg for faktiske driftsomkostninger til miljø- og servicemål i 2013"]
[null,"Selskabets faktiske driftsomkostninger til miljø- og servicemål i 2013, jf. reguleringsregnskabet",0,"kr."]
[null,"Tillæg for budgetterede driftsomkostninger til miljø- og servicemål i prisloft 2013",0,"kr."]
[null,"Korrektion af tillæg for budgetterede driftsomkostninger til miljø- og servicemål i 2013",{"$f":"C13-C14","v":0},"kr."]

{"sheet":"10. Nettofinansielle poster","index":9,"n_rows":16,"n_cols":4,"rows_kept":16,"cut":false,"hidden":false,"merged":[[3,1,3,3]]}
[{"$f":"'2. Samlet prisloft'!A1","v":"Solrød Vandværk a.m.b.a."}]
[]
[]
[null,"Fane 10. Nettofinansielle poster"]
[]
[null,"Tillæg for budgetterede nettofinansielle poster i 2015"]
[null,"Budgetterede renteudgifter og gebyrer i 2015",75000,"kr."]
[null,"Budgetterede renteindtægter i 2015",40000,"kr."]
[null,"Tillæg/fradrag i alt",{"$f":"C7-C8","v":35000},"kr."]
[]
[]
[]
[null,"Korrektion af tillæg for faktiske nettofinansielle poster i 2013"]
[null,"Selskabets faktiske nettofinansielle poster i 2013, jf. reguleringsregnskabet",16198,"kr."]
[null,"Tillæg for budgetterede nettofinansielle poster i prisloft 2013",-500000,"kr."]
[null,"Korrektion af tillæg for budgetterede nettofinansielle poster i 2013",{"$f":"C14-C15","v":516198},"kr."]

{"sheet":"11. Over- eller underdækning","index":10,"n_rows":11,"n_cols":4,"rows_kept":11,"cut":false,"hidden":false,"merged":[[3,1,3,3]]}
[{"$f":"'1. Forside'!A1","v":"Solrød Vandværk a.m.b.a."}]
[]
[]
[null,"Fane 11. Over- eller underdækning til og med 2010"]
[]
[null,"Tillæg/fradrag for over- eller underdækning til og med 2010"]
[null,"Opgjort over- eller underdækning per 31. december 2010",-14082397,"kr."]
[null,"Heraf beløb indregnet i prislofterne for 2011 - 2014",-5964643.666666667,"kr."]
[null,"Endnu ikke indregnet over- eller underdækning",{"$f":"C7-C8","v":-8117753.333333333},"kr."]
[null,"Resterende indregningsperiode (fastsat i prisloftet for 2012)",6,"år"]
[null,"Tillæg/fradrag i alt",{"$f":"IF(C7=0,0,C9/C10)","v":-1352958.8888888888},"kr."]

{"sheet":"12. Kontrol med indtægtsrammen","index":11,"n_rows":38,"n_cols":12,"rows_kept":38,"cut":false,"hidden":false,"merged":[[3,1,3,5],[30,1,30,4],[5,1,5,5]]}
[{"$f":"'11. Over- eller underdækning'!A1","v":"Solrød Vandværk a.m.b.a."}]
[]
[]
[null,"Fane 12. Korrektion for overholdelse af indtægtsrammen i prisloftet for 2013"]
[]
[null,"Samlet opgørelse vedrørende overholdelse af indtægtsrammen i prisloftet for 2013"]
[null,"Indtægtsramme i prisloftet for 2013",null,null,9335120.4871127903,"kr."]
[null,"Ikke anvendt likviditet vedrørende investeringer i 2013"]
[null,"Tillæg for historiske investeringer ",2155821.8190627885,"kr."]
[null,"Tillæg for gennemførte investeringer i 2011",410601,"kr."]
[null,"Korrektion af tillæg for planlagte investeringer i 2011",166274,"kr."]
[null,"Tillæg for planlagte investeringer i 2012 og 2013",191133,"kr."]
[null,"Indtægter fra tilslutningsbidrag",0,"kr."]
[null,"Indtægter fra salg af anlægsaktiver",565357,"kr."]
[null,"Erstatninger vedr. anlægsaktiver mv.",0,"kr."]
[null,"Ekstraordinær effektiviseringsgevinst anvendt til investeringer",1798696,"kr."]
[null,"Udgifter til investeringer",-5287883,"kr."]
[null,"Ikke anvendt likviditet vedr. investeringer i alt",{"$f":"SUM(C9:C17)","v":-0.18093721196055412},"kr.",{"$f":"IF(C18<0,0,-C18)","v":0},"kr."]
[null,"Ekstraordinære effektiviseringsgevinster anvendt til takstnedsættelse"]
[null,"Ekstraordinær effektiviseringsgevinst anvendt til takstnedsættelse",0,"kr.",{"$f":"-C20","v":0},"kr."]
[null,"Korrektion af ikke opkrævet tillæg fra 2011 i prisloft 2013"]
[null,"Korrektion af ikke opkrævet tillæg fra 2011 i prisloft 2013",0,"kr.",{"$f":"-C22","v":0},"kr."]
[null,"Indtægter fra primære aktiviteter mv."]
[null,"Indtægter fra kubikmetertakster, faste takster, særbidrag, målergebyrer samt andre takster og gebyrer",9515410,"kr."]
[null,"Andre indtægter i prisloftåret, som selskabet har opnået i forbindelse med eller som følge af selskabets primære aktiviteter",0,"kr."]
[null,"Indtægter fra primære aktiviteter mv. i alt",{"$f":"SUM(C24:C25)","v":9515410},"kr.",{"$f":"-C26","v":-9515410},"kr."]
[null,"Tillæg/fradrag i prisloftet for 2015 i alt",null,null,{"$f":"E7+E18+E20+E22+E26","v":-180289.51288720965},"kr."]
[]
[]
[]
[null,"Oversigt over ekstraordinære effektiviseringsgevinster"]
[]
[null,null,2012,null,2013,null,2014,null,2015,null,2016]
[null,"Indhentet ekstraordinær effektiviseringsgevinst",0,"kr.",1798696,"kr.",null,"kr.",null,"kr.",null,"kr."]
[null,"Gevinst anvendt til investeringer",0,"kr.",1798696,"kr.",null,"kr.",null,"kr.",null,"kr."]
[null,"Gevinst anvendt til takstnedsættelse",0,"kr.",0,"kr.",null,"kr.",null,"kr.",null,"kr."]
[null,"Korrektion for  effektiviseringsgevinst der ikke er anvendt inden 4 år",0,"kr.",0,"kr.",null,"kr.",null,"kr.",{"$f":"IF(C38>SUM(C35:I36),C38-SUM(E35:I36),0)*-1","v":0},"kr."]
[null,"Resterende gevinst",{"$f":"C34-C35-C36","v":0},"kr.",{"$f":"C38+E34-E35-E36","v":0},"kr.",{"$f":"E38+G34-G35-G36","v":0},"kr.",{"$f":"G38+I34-I35-I36","v":0},"kr.",{"$f":"K34-K35-K36+K37","v":0},"kr."]